fUST/lending_fUST_20241109
["ID","MTS","AMOUNT","RATE_DAILY","PERIOD"]
[341675635,1731082866790,-318.51965032,0.00027397,2]
[341675636,1731082866799,-63.69420304,0.0002749,2]
[341675637,1731082866810,-456.27279122,0.0002749,2]
[341675638,1731082866821,-500.0,0.0002749,2]
[341675639,1731082866833,-206.01425158,0.0002749,2]
[341675640,1731082866843,-293.98574842,0.00028,2]
[341675641,1731082866854,-500.0,0.00028,2]
[341675642,1731082866866,-500.0,0.00028,2]
[341675643,1731082866877,-206.01425158,0.00028,2]
[341675644,1731082866886,-293.98574842,0.00028478,7]
[341675645,1731082866898,-206.01425158,0.00028478,7]
[341675646,1731082866908,-293.98574842,0.00028763,10]
[341675647,1731082866919,-500.0,0.00028763,10]
[341675648,1731082866931,-515.57914577,0.00028763,10]
[341675649,1731082866942,-500.0,0.00028763,10]
[341675650,1731082866953,-500.0,0.00028763,10]
[341675651,1731082866964,-500.0,0.00028763,10]
[341675652,1731082866975,-500.0,0.00028763,10]
[341675653,1731082866991,-500.0,0.00028763,10]
[341675654,1731082867002,-500.0,0.00028763,10]
[341675655,1731082867013,-333.57425494,0.00028763,10]
[341675656,1731082867025,-500.0,0.00028763,10]
[341675657,1731082867036,-500.0,0.00028763,10]
[341675658,1731082867047,-500.16558381,0.00028763,10]
[341675659,1731082867062,-500.0,0.00028763,10]
[341675660,1731082867077,-500.0,0.00028763,10]
[341675661,1731082867090,-500.0,0.00028763,10]
[341675662,1731082867101,-500.0,0.00028763,10]
[341675663,1731082867115,-500.0,0.00028763,10]
[341675664,1731082867132,-500.0,0.00023785,2]
[341675665,1731082867148,-2.69396369,0.00023785,2]
[341675666,1731082867158,-497.30603631,0.00028763,10]
[341675667,1731082867169,-500.0,0.00028763,10]
[341675668,1731082867180,-501.41355251,0.00028763,10]
[341675669,1731082867192,-500.0,0.00028763,10]
[341675670,1731082867205,-414.56041118,0.00028763,10]
[341675671,1731082867214,-85.43958882,0.00028773,2]
[341675672,1731082867226,-500.0,0.00028773,2]
[341675673,1731082867236,-500.0,0.00028773,2]
[341675674,1731082867249,-500.0,0.00028773,2]
[341675675,1731082867260,-500.90932736,0.00028773,2]
[341675676,1731082867271,-500.0,0.00028773,2]
[341675677,1731082867282,-500.0,0.00028773,2]
[341675678,1731082867293,-500.0,0.00028773,2]
[341675679,1731082867304,-500.0,0.00028773,2]
[341675680,1731082867315,-500.0,0.00028773,2]
[341675681,1731082867326,-500.0,0.00028773,2]
[341675682,1731082867337,-500.0,0.00028773,2]
[341675683,1731082867348,-500.0,0.00028773,2]
[341675684,1731082867359,-500.0,0.00028773,2]
[341675685,1731082867370,-500.0,0.00028773,2]
[341675686,1731082867395,-456.37405196,0.00028773,2]
[341675687,1731082867404,-43.62594804,0.00028908,2]
[341675688,1731082867415,-641.24,0.00028908,2]
[341675689,1731082867427,-314.82318418,0.00028908,2]
[341675690,1731082867441,-226.29211362,0.00028908,2]
[341675691,1731082867451,-273.70788638,0.00028964,2]
[341675692,1731082867462,-500.0,0.00028964,2]
[341675693,1731082867473,-226.29211362,0.00028964,2]
[341675694,1731082867482,-282.8068869,0.00028973,5]
[341675695,1731082867495,-217.1931131,0.00028973,5]
[341675696,1731082867504,-282.8068869,0.00028973,5]
[341675697,1731082867515,-217.1931131,0.00028973,5]
[341675698,1731082867524,-289.90360361,0.00028973,5]
[341675699,1731082867535,-171.596967,0.00028973,5]
[341675700,1731082867546,-38.49942939,0.00028973,5]
[341675701,1731082867557,-461.50057061,0.00028999,2]
[341675702,1731082867568,-38.49942939,0.00028999,2]
[341675703,1731082867577,-243.23968402,0.00028999,2]
[341675704,1731082867587,-159.15911932,0.00028999,2]
[341675705,1731082867598,-154.83323548,0.00028999,2]
[341675706,1731082867607,-433.38454836,0.00028999,2]
[341675707,1731082867622,-66.61545164,0.00028999,2]
[341675708,1731082867631,-293.28454836,0.00028999,2]
[341675709,1731082867645,-206.71545164,0.00028999,2]
[341675710,1731082867654,-293.28454836,0.00028999,2]
[341675711,1731082867665,-62.97174313,0.00028999,2]
[341675712,1731082867674,-437.02825687,0.00028999,2]
[341675713,1731082867685,-62.97174313,0.00028999,2]
[341675714,1731082867694,-437.02825687,0.00028999,2]
[341675715,1731082867706,-62.97174313,0.00028999,2]
[341675716,1731082867716,-437.02825687,0.00028999,2]
[341675717,1731082867727,-62.97174313,0.00028999,2]
[341675718,1731082867737,-437.02825687,0.00028999,2]
[341675719,1731082867749,-62.97174313,0.00028999,2]
[341675720,1731082867758,-500.0,0.00028999,2]
[341675721,1731082867767,-30.53135737,0.00028999,2]
[341675722,1731082867779,-469.46864263,0.00028999,2]
[341675723,1731082867788,-30.53135737,0.00028999,2]
[341675724,1731082867799,-297.73372021,0.00028999,2]
[341675725,1731082867810,-171.73492242,0.00028999,2]
[341675726,1731082867820,-163.03621197,0.00028999,2]
[341675727,1731082867831,-336.96378803,0.00028999,2]
[341675728,1731082867839,-163.03621197,0.00028999,2]
[341675729,1731082867855,-500.0,0.00022281,2]
[341675730,1731082867866,-8.02340623,0.00022281,2]
[341675731,1731082867875,-236.96378803,0.00028999,2]
[341675732,1731082867884,-255.01280574,0.00029,2]
[341675733,1731082867897,-500.0,0.00029,2]
[341675734,1731082867934,-500.0,0.00029,2]
[341675735,1731082867945,-500.0,0.00029,2]
[341675736,1731082867956,-500.0,0.00029,2]
[341675737,1731082867967,-500.0,0.00029,2]
[341675738,1731082867979,-500.0,0.00029,2]
[341675739,1731082867990,-500.0,0.00029,2]
[341675740,1731082868002,-500.0,0.00029,2]
[341675741,1731082868013,-500.0,0.00029,2]
[341675742,1731082868025,-230.6983022,0.00029,2]
[341675743,1731082868036,-500.02318707,0.00029,2]
[341675744,1731082868048,-500.0,0.00029,2]
[341675745,1731082868059,-500.0,0.00029,2]
[341675746,1731082868070,-500.0,0.00029,2]
[341675747,1731082868085,-500.0,0.00029,2]
[341675748,1731082868096,-500.0,0.00029,2]
[341675749,1731082868107,-500.0,0.00029,2]
[341675750,1731082868123,-500.0,0.00029,2]
[341675751,1731082868133,-500.0,0.00029,2]
[341675752,1731082868147,-500.0,0.00029,2]
[341675753,1731082868159,-500.0,0.00029,2]
[341675754,1731082868171,-500.0,0.00029,2]
[341675755,1731082868188,-506.77844479,0.00021917,2]
[341675756,1731082868200,-3.11392372,0.00021917,2]
[341675757,1731082868209,-496.88607628,0.00029,2]
[341675758,1731082868221,-500.0,0.00029,2]
[341675759,1731082868232,-500.0,0.00029,2]
[341675760,1731082868316,-500.0,0.00029,2]
[341675761,1731082868343,-500.0,0.00029,2]
[341675762,1731082868355,-410.85747972,0.00029,2]
[341675763,1731082868366,-500.0,0.00029,2]
[341675764,1731082868383,-487.67324672,0.00025515,2]
[341675765,1731082868396,-15.02071697,0.00025515,2]
[341675766,1731082868405,-484.97928303,0.00029,2]
[341675767,1731082868417,-500.0,0.00029,2]
[341675768,1731082868428,-504.35740019,0.00029,2]
[341675769,1731082868439,-500.0,0.00029,2]
[341675770,1731082868456,-508.72243777,0.00029,2]
[341675771,1731082868467,-500.0,0.00029,2]
[341675772,1731082868479,-500.0,0.00029,2]
[341675773,1731082868491,-500.0,0.00029,2]
[341675774,1731082868503,-243.82899726,0.00029,2]
[341675775,1731082868515,-500.0,0.00029,2]
[341675776,1731082868526,-186.37572088,0.00029,2]
[341675777,1731082868537,-2400.173867,0.00029,2]
[341675778,1731082868549,-500.0,0.00029,2]
[341675779,1731082868560,-500.0,0.00029,2]
[341675780,1731082868571,-500.0,0.00029,2]
[341675781,1731082868583,-510.19,0.00029,2]
[341675782,1731082868594,-500.0,0.00029,2]
[341675783,1731082868605,-199.35133926,0.00029,2]
[341675784,1731082868646,-500.0,0.00029,2]
[341675785,1731082868657,-500.0,0.00029,2]
[341675786,1731082868673,-500.0,0.00021917,2]
[341675787,1731082868684,-500.0,0.00029,2]
[341675788,1731082868695,-428.04900165,0.00029,2]
[341675789,1731082868706,-500.0,0.00029,2]
[341675790,1731082868717,-425.74736252,0.00029,2]
[341675791,1731082868728,-256.8306268,0.00029,2]
[341675792,1731082868742,-500.0,0.00029,2]
[341675793,1731082868753,-505.40304772,0.00029,2]
[341675794,1731082868764,-511.88328777,0.00029,2]
[341675795,1731082868775,-500.0,0.00029,2]
[341675796,1731082868787,-500.0,0.00029,2]
[341675797,1731082868798,-501.27550894,0.00029,2]
[341675798,1731082868809,-500.0,0.00029,2]
[341675799,1731082868821,-500.0,0.00029,2]
[341675800,1731082868833,-500.0,0.00029,2]
[341675801,1731082868844,-171.596967,0.00029,2]
[341675802,1731082868856,-420.0,0.00029,2]
[341675803,1731082868867,-500.0,0.00029,2]
[341675804,1731082868879,-500.0,0.00029,2]
[341675805,1731082868891,-500.0,0.00029,2]
[341675806,1731082868902,-420.0,0.00029,2]
[341675807,1731082868914,-500.0,0.00029,2]
[341675808,1731082868926,-1225.98124584,0.00029,2]
[341675809,1731082868937,-500.0,0.00029,2]
[341675810,1731082868948,-1000.0,0.00029,2]
[341675811,1731082868959,-500.0,0.00029,2]
[341675812,1731082868970,-562.14464351,0.00029,2]
[341675813,1731082868981,-171.596967,0.00029,2]
[341675814,1731082868993,-500.0,0.00029,2]
[341675815,1731082869004,-500.0,0.00029,2]
[341675816,1731082869015,-500.0,0.00029,2]
[341675817,1731082869027,-500.0,0.00029,2]
[341675818,1731082869038,-500.0,0.00029,2]
[341675819,1731082869049,-500.0,0.00029,2]
[341675820,1731082869060,-500.0,0.00029,2]
[341675821,1731082869082,-215.55193146,0.00029,2]
[341675825,1731083065320,165.867289,0.00013973,2]
[341675831,1731083288841,694.44444444,0.00020843,2]
[341675833,1731083318671,1000.0,0.00031844,120]
[341675835,1731083332537,3494.88105219,0.00020843,2]
[341675906,1731083432790,-5000.0,0.00021128,2]
[341675908,1731083432799,-2002.0142723,0.00021167,2]
[341675910,1731083432809,-390.1319291,0.00021341,2]
[341675912,1731083432818,-1121.6566282,0.00021817,2]
[341675914,1731083432830,-300.0,0.00021916,2]
[341675915,1731083432839,-300.0,0.00021916,2]
[341675917,1731083432848,-303.40360636,0.00021917,2]
[341675920,1731083432858,-503.05542206,0.00021917,2]
[341675921,1731083432867,-500.0,0.00021917,2]
[341675924,1731083432876,-500.0,0.00021917,2]
[341675926,1731083432885,-190.42012621,0.00021917,2]
[341675927,1731083432894,-500.0,0.00021917,2]
[341675942,1731083433016,-500.0,0.00021917,2]
[341675944,1731083433026,-500.0,0.00021917,2]
[341675946,1731083433035,-500.0,0.00021917,2]
[341675948,1731083433045,-500.0,0.00021917,2]
[341675950,1731083433054,-500.0,0.00021917,2]
[341675952,1731083433064,-508.26976811,0.00021917,2]
[341675954,1731083433074,-500.0,0.00021917,2]
[341675956,1731083433084,-500.0,0.00021917,2]
[341675958,1731083433094,-500.0,0.00021917,2]
[341675960,1731083433103,-500.0,0.00021917,2]
[341675962,1731083433112,-500.0,0.00021917,2]
[341675964,1731083433121,-500.0,0.00021917,2]
[341675966,1731083433131,-519.71244526,0.00021917,2]
[341675968,1731083433140,-500.0,0.00021917,2]
[341675970,1731083433149,-500.0,0.00021917,2]
[341675972,1731083433159,-500.0,0.00021917,2]
[341675974,1731083433168,-500.0,0.00021917,2]
[341675976,1731083433177,-500.0,0.00021917,2]
[341675978,1731083433186,-500.0,0.00021917,2]
[341675980,1731083433195,-500.0,0.00021917,2]
[341675982,1731083433204,-500.0,0.00021917,2]
[341675983,1731083433214,-500.0,0.00021917,2]
[341675985,1731083433223,-173.11570067,0.00021917,2]
[341675987,1731083433233,-514.71350386,0.00021917,2]
[341675989,1731083433243,-500.0,0.00021917,2]
[341675991,1731083433252,-500.0,0.00021917,2]
[341675993,1731083433261,-500.0,0.00021917,2]
[341675995,1731083433270,-500.0,0.00021917,2]
[341675997,1731083433285,-500.0,0.00021917,2]
[341675999,1731083433294,-500.0,0.00021917,2]
[341676001,1731083433303,-500.0,0.00021917,2]
[341676003,1731083433312,-500.0,0.00021917,2]
[341676005,1731083433324,-500.0,0.00021917,2]
[341676007,1731083433334,-500.0,0.00021917,2]
[341676009,1731083433343,-500.0,0.00021917,2]
[341676011,1731083433352,-500.0,0.00021917,2]
[341676013,1731083433363,-500.0,0.00021917,2]
[341676015,1731083433377,-500.0,0.00021917,2]
[341676017,1731083433386,-500.0,0.00021917,2]
[341676019,1731083433395,-500.0,0.00021917,2]
[341676021,1731083433404,-500.0,0.00021917,2]
[341676023,1731083433413,-500.0,0.00021917,2]
[341676025,1731083433422,-500.0,0.00021917,2]
[341676027,1731083433433,-500.0,0.00021917,2]
[341676029,1731083433442,-500.0,0.00021917,2]
[341676031,1731083433452,-500.0,0.00021917,2]
[341676033,1731083433462,-500.0,0.00021917,2]
[341676035,1731083433471,-500.0,0.00021917,2]
[341676037,1731083433480,-500.0,0.00021917,2]
[341676039,1731083433489,-500.0,0.00021917,2]
[341676041,1731083433498,-500.0,0.00021917,2]
[341676043,1731083433508,-500.0,0.00021917,2]
[341676045,1731083433518,-500.0,0.00021917,2]
[341676047,1731083433527,-500.0,0.00021917,2]
[341676049,1731083433536,-500.0,0.00021917,2]
[341676051,1731083433546,-500.0,0.00021917,2]
[341676053,1731083433555,-500.0,0.00021917,2]
[341676055,1731083433564,-629.92,0.00021917,2]
[341676057,1731083433575,-500.0,0.00021917,2]
[341676059,1731083433584,-500.0,0.00021917,2]
[341676061,1731083433593,-500.0,0.00021917,2]
[341676063,1731083433603,-500.0,0.00021917,2]
[341676065,1731083433612,-500.0,0.00021917,2]
[341676067,1731083433622,-500.0,0.00021917,2]
[341676069,1731083433631,-500.0,0.00021917,2]
[341676071,1731083433639,-500.0,0.00021917,2]
[341676073,1731083433648,-500.0,0.00021917,2]
[341676075,1731083433657,-500.0,0.00021917,2]
[341676077,1731083433666,-500.0,0.00021917,2]
[341676079,1731083433675,-500.0,0.00021917,2]
[341676080,1731083433684,-500.0,0.00021917,2]
[341676081,1731083433693,-2336.0,0.00021917,2]
[341676082,1731083433703,-500.0,0.00021917,2]
[341676084,1731083433713,-203.14438556,0.00021917,2]
[341676086,1731083433722,-516.96119422,0.00021917,2]
[341676087,1731083433731,-500.0,0.00021917,2]
[341676088,1731083433740,-500.0,0.00021917,2]
[341676089,1731083433749,-500.0,0.00021917,2]
[341676090,1731083433759,-500.0,0.00021917,2]
[341676091,1731083433767,-169.67093433,0.00021917,2]
[341676092,1731083433777,-500.0,0.00021917,2]
[341676093,1731083433787,-500.0,0.00021917,2]
[341676094,1731083433796,-500.0,0.00021917,2]
[341676095,1731083433805,-500.0,0.00021917,2]
[341676096,1731083433814,-500.0,0.00021917,2]
[341676097,1731083433824,-500.0,0.00021917,2]
[341676098,1731083433833,-500.0,0.00021917,2]
[341676099,1731083433842,-500.0,0.00021917,2]
[341676100,1731083433851,-500.0,0.00021917,2]
[341676101,1731083433860,-500.0,0.00021917,2]
[341676102,1731083433869,-500.0,0.00021917,2]
[341676103,1731083433879,-500.0,0.00021917,2]
[341676104,1731083433888,-500.0,0.00021917,2]
[341676105,1731083433897,-500.0,0.00021917,2]
[341676106,1731083433906,-500.0,0.00021917,2]
[341676107,1731083433915,-500.0,0.00021917,2]
[341676108,1731083433923,-500.0,0.00021917,2]
[341676109,1731083433935,-500.0,0.00021917,2]
[341676110,1731083433944,-500.0,0.00021973,2]
[341676111,1731083433953,-500.0,0.00021973,2]
[341676112,1731083433962,-500.0,0.00021973,2]
[341676113,1731083433972,-160.35597917,0.00022,10]
[341676114,1731083433981,-500.0,0.00022096,2]
[341676115,1731083433992,-500.0,0.00022096,2]
[341676116,1731083434001,-500.0,0.00022096,2]
[341676117,1731083434011,-440.60899483,0.00022096,2]
[341676118,1731083434019,-500.0,0.00022096,2]
[341676119,1731083434029,-500.0,0.00022096,2]
[341676120,1731083434038,-500.0,0.00022096,2]
[341676121,1731083434047,-500.0,0.00022096,2]
[341676122,1731083434056,-500.0,0.00022096,2]
[341676123,1731083434066,-289.47358809,0.00022096,2]
[341676124,1731083434076,-584.47699531,0.00022096,2]
[341676125,1731083434085,-500.0,0.00022096,2]
[341676126,1731083434095,-500.0,0.00022096,2]
[341676127,1731083434103,-500.0,0.00022096,2]
[341676128,1731083434114,-500.0,0.00022096,2]
[341676129,1731083434123,-500.0,0.00022096,2]
[341676130,1731083434132,-500.0,0.00022096,2]
[341676131,1731083434142,-250.0,0.00022096,2]
[341676132,1731083434151,-500.0,0.00022096,2]
[341676133,1731083434160,-500.0,0.00022096,2]
[341676134,1731083434169,-500.0,0.00022096,2]
[341676135,1731083434179,-500.0,0.00022096,2]
[341676136,1731083434188,-500.0,0.00022096,2]
[341676137,1731083434198,-500.0,0.00022096,2]
[341676138,1731083434207,-500.0,0.00022096,2]
[341676139,1731083434216,-500.0,0.00022096,2]
[341676140,1731083434225,-500.0,0.00022191,2]
[341676141,1731083434234,-500.0,0.00022191,2]
[341676142,1731083434243,-500.0,0.00022191,2]
[341676143,1731083434253,-500.0,0.00022191,2]
[341676144,1731083434262,-500.0,0.00022191,2]
[341676145,1731083434271,-500.0,0.00022191,2]
[341676146,1731083434280,-500.0,0.00022191,2]
[341676147,1731083434293,-500.0,0.00022191,2]
[341676148,1731083434302,-581.93851942,0.00022191,2]
[341676149,1731083434311,-500.0,0.00022191,2]
[341676150,1731083434321,-500.0,0.00022191,2]
[341676151,1731083434333,-500.0,0.00022191,2]
[341676152,1731083434347,-500.0,0.00022191,2]
[341676153,1731083434357,-500.0,0.00022191,2]
[341676154,1731083434366,-500.0,0.00022191,2]
[341676155,1731083434375,-500.0,0.00022281,2]
[341676156,1731083434385,-500.0,0.00022281,2]
[341676157,1731083434395,-500.0,0.00022281,2]
[341676158,1731083434404,-500.0,0.00022281,2]
[341676159,1731083434413,-500.0,0.0002237,2]
[341676160,1731083434422,-526.02237656,0.0002245,2]
[341676161,1731083434431,-500.0,0.00022465,2]
[341676162,1731083434439,-500.0,0.00022465,2]
[341676163,1731083434448,-500.0,0.00022465,2]
[341676164,1731083434457,-500.0,0.00022465,2]
[341676165,1731083434466,-500.0,0.00022465,2]
[341676166,1731083434475,-500.0,0.00022465,2]
[341676167,1731083434484,-500.0,0.00022465,2]
[341676168,1731083434493,-500.0,0.00022465,2]
[341676169,1731083434502,-500.0,0.00022589,2]
[341676170,1731083434511,-168.53731759,0.00022589,2]
[341676171,1731083434520,-500.0,0.00022589,2]
[341676172,1731083434529,-500.0,0.00022739,2]
[341676173,1731083434538,-500.0,0.00022739,2]
[341676174,1731083434547,-500.0,0.00022739,2]
[341676175,1731083434556,-500.0,0.00022739,2]
[341676176,1731083434565,-500.0,0.00022739,2]
[341676177,1731083434576,-500.0,0.00022739,2]
[341676178,1731083434585,-500.0,0.00022739,2]
[341676179,1731083434595,-500.0,0.00022739,2]
[341676180,1731083434603,-207.79,0.0002299,3]
[341676181,1731083434614,-2019.16079209,0.00023,2]
[341676182,1731083434624,-831.16,0.00023003,3]
[341676183,1731083434634,-415.58,0.00023003,3]
[341676184,1731083434643,-623.41,0.00023003,3]
[341676185,1731083434652,-500.0,0.00023013,2]
[341676186,1731083434661,-500.0,0.00023013,2]
[341676187,1731083434671,-500.0,0.00023013,2]
[341676188,1731083434681,-500.0,0.00023013,2]
[341676189,1731083434690,-500.0,0.00023013,2]
[341676190,1731083434700,-500.0,0.00023013,2]
[341676191,1731083434709,-500.0,0.00023013,2]
[341676192,1731083434718,-383.24,0.00023013,2]
[341676193,1731083434727,-500.0,0.00023035,2]
[341676194,1731083434737,-555.81330193,0.00023187,2]
[341676195,1731083434746,-1121.65662815,0.00023235,2]
[341676196,1731083434755,-500.0,0.00023287,2]
[341676197,1731083434764,-500.0,0.00023287,2]
[341676198,1731083434774,-242.55042886,0.00023287,2]
[341676199,1731083434783,-500.0,0.00023287,2]
[341676200,1731083434793,-500.0,0.00023287,2]
[341676201,1731083434802,-500.0,0.00023287,2]
[341676202,1731083434812,-500.0,0.00023287,2]
[341676203,1731083434822,-1000.0,0.00023342,2]
[341676204,1731083434836,-500.0,0.00023561,2]
[341676205,1731083434846,-500.0,0.00023561,2]
[341676206,1731083434855,-256.32,0.00023561,2]
[341676207,1731083434864,-1000.0,0.00023651,2]
[341676208,1731083434873,-508.64599057,0.00023651,2]
[341676209,1731083434883,-500.0,0.00023799,2]
[341676210,1731083434892,-500.0,0.00023799,2]
[341676211,1731083434901,-500.0,0.00023799,2]
[341676212,1731083434911,-500.0,0.00023799,2]
[341676213,1731083434920,-546.24449563,0.00023835,2]
[341676214,1731083434929,-500.0,0.00024073,2]
[341676215,1731083434939,-500.0,0.00024073,2]
[341676216,1731083434947,-500.0,0.00024073,2]
[341676217,1731083434957,-250.0,0.00024094,2]
[341676218,1731083434966,-420.0,0.00024108,2]
[341676219,1731083434975,-500.0,0.00024347,2]
[341676220,1731083434984,-500.0,0.00024347,2]
[341676221,1731083434993,-500.0,0.00024347,2]
[341676222,1731083435003,-415.58,0.0002436,3]
[341676223,1731083435012,-1662.32,0.00024373,3]
[341676224,1731083435021,-831.16,0.00024373,3]
[341676225,1731083435031,-500.0,0.00024405,2]
[341676226,1731083435039,-610.58596918,0.00024619,2]
[341676227,1731083435049,-500.0,0.00024619,2]
[341676228,1731083435058,-595.24439245,0.00024619,2]
[341676229,1731083435067,-500.0,0.0002462,2]
[341676230,1731083435081,-500.0,0.0002462,2]
[341676231,1731083435089,-500.0,0.0002462,2]
[341676232,1731083435098,-500.0,0.0002462,2]
[341676233,1731083435107,-1070.7,0.0002462,2]
[341676234,1731083435116,-500.0,0.0002462,2]
[341676235,1731083435125,-500.0,0.0002462,2]
[341676236,1731083435134,-500.0,0.0002462,2]
[341676237,1731083435143,-500.0,0.0002462,2]
[341676238,1731083435152,-528.72978513,0.0002462,2]
[341676285,1731083438932,-500.0,0.00021917,2]
[341676286,1731083438942,-500.0,0.00021917,2]
[341676287,1731083438952,-500.0,0.00023035,2]
[341676288,1731083438962,-500.0,0.00023798,2]
[341676289,1731083438971,-500.0,0.00023798,2]
[341676290,1731083438981,-340.07563895,0.00023798,2]
[341676291,1731083438990,-500.0,0.00023798,2]
[341676292,1731083438999,-500.0,0.00023798,2]
[341676293,1731083439009,-500.0,0.00023798,2]
[341676294,1731083439019,-500.0,0.00023798,2]
[341676295,1731083439028,-500.0,0.00023798,2]
[341676296,1731083439037,-500.0,0.00023798,2]
[341676297,1731083439049,-294.64632354,0.00023798,2]
[341676298,1731083439061,-500.0,0.00023798,2]
[341676299,1731083439071,-333.79711076,0.00023798,2]
[341676300,1731083439081,-500.0,0.00023798,2]
[341676301,1731083439091,-503.21574045,0.00023798,2]
[341676302,1731083439100,-178.19998268,0.00023798,2]
[341676303,1731083439111,-336.01285805,0.00024405,2]
[341676304,1731083439120,-679.49021487,0.0002462,2]
[341676306,1731083439129,-500.0,0.0002462,2]
[341676307,1731083439139,-500.0,0.0002462,2]
[341676309,1731083439149,-500.0,0.0002462,2]
[341676311,1731083439158,-500.0,0.0002462,2]
[341676313,1731083439167,-500.0,0.0002462,2]
[341676315,1731083439176,-500.0,0.0002462,2]
[341676317,1731083439186,-500.0,0.00024621,2]
[341676319,1731083439195,-500.0,0.00024621,2]
[341676322,1731083439205,-500.0,0.00024621,2]
[341676324,1731083439215,-555.8133019,0.00024634,2]
[341676326,1731083439224,-1121.65662815,0.00024653,2]
[341676328,1731083439233,-583.05043532,0.00024658,2]
[341676330,1731083439243,-474.00760925,0.00024658,2]
[341676332,1731083439252,-500.0,0.00024894,2]
[341676334,1731083439261,-1070.7,0.00024894,2]
[341676336,1731083439271,-500.0,0.00024894,2]
[341676338,1731083439280,-1208.22,0.00024894,2]
[341676340,1731083439294,-500.0,0.00024894,2]
[341676342,1731083439303,-500.0,0.00024894,2]
[341676344,1731083439313,-500.0,0.00024894,2]
[341676346,1731083439324,-500.0,0.00024895,2]
[341676348,1731083439333,-585.15634434,0.00024895,2]
[341676350,1731083439342,-500.0,0.00024895,2]
[341676352,1731083439351,-500.0,0.00024973,2]
[341676354,1731083439361,-57706.8375366,0.00025,2]
[341676356,1731083439372,-171.0,0.00025,2]
[341676358,1731083439381,-6306.77507622,0.0002509,2]
[341676360,1731083439391,-500.0,0.00025168,2]
[341676362,1731083439400,-1070.7,0.00025168,2]
[341676364,1731083439409,-500.0,0.00025168,2]
[341676366,1731083439418,-1208.22,0.00025168,2]
[341676368,1731083439428,-500.0,0.00025168,2]
[341676370,1731083439437,-500.0,0.00025168,2]
[341676372,1731083439447,-500.0,0.00025169,2]
[341676374,1731083439457,-150.0,0.000252,2]
[341676376,1731083439466,-500.0,0.00025442,2]
[341676378,1731083439476,-1070.7,0.00025442,2]
[341676380,1731083439485,-500.0,0.00025442,2]
[341676382,1731083439495,-1208.22,0.00025442,2]
[341676384,1731083439505,-500.0,0.00025442,2]
[341676386,1731083439514,-500.0,0.00025443,2]
[341676388,1731083439524,-500.0,0.00025716,2]
[341676390,1731083439533,-1070.7,0.00025716,2]
[341676392,1731083439543,-500.0,0.00025716,2]
[341676394,1731083439552,-1208.22,0.00025716,2]
[341676396,1731083439562,-500.0,0.00025716,2]
[341676398,1731083439571,-1500.0,0.00025847,2]
[341676400,1731083439581,-171.0,0.0002589,2]
[341676403,1731083439591,-500.0,0.0002599,2]
[341676405,1731083439600,-1070.7,0.0002599,2]